Workbook

Sheet Title
C1: Calculation practice activities to accompany CHAPTER 7
C3: Social Statistics in Action: A Canadian Introduction
C4: Andrea M. Noack
C6: Oxford University Press, 2018
C8: For more information, visit:
C9: https://www.oupcanada.com/catalog/9780199015214.html

Sheet Cohen's d
B1: PRACTICE CALCULATING COHEN'S D
B3: Use the statistics provided to calculate Cohen's d. Keep two decimal places throughout your calculations. To check your answer, click on the 'Show Answer' button.
B6: GROUP 1 | E6: GROUP 2
B7: Case # | C7: Value on Variable X | E7: Case # | F7: Value on Variable X
H8: Group 1 Mean (x-bar1): | I8: 17
B9: 1 | C9: 21 | E9: 11 | F9: 23 | H9: Group 2 Mean (x-bar2): | I9: 15
B10: 2 | C10: 4 | E10: 12 | F10: 22 | H10: Standard deviation [overall] (s): | I10: 9.57
B11: 3 | C11: 4 | E11: 13 | F11: 7
B12: 4 | C12: 31 | E12: 14 | F12: 17 | H12: Cohen's d: | I12: hidden
B13: 5 | C13: 17 | E13: 15 | F13: 27
B14: 6 | C14: 18 | E14: 16 | F14: 9
B15: 7 | C15: 9 | E15: 17 | F15: 18
B16: 8 | C16: 12 | E16: 18 | F16: 2 | H16: Need some help?
B17: 9 | C17: 39 | E17: 19 | F17: 17
B18: 10 | C18: 15 | E18: 20 | F18: 8
B20: COHEN'S D CALCULATION
B21: Numerator
D22: = 17 - 15
D23: = ?
B24: Denominator
D25: = 9.57
B26: Cohen's d
D27: = 2 ÷ 9.57
D28: = ?

Sheet T-Test of Independent Means
B1: PRACTICE CALCULATING A T-TEST OF INDEPENDENT MEANS
B3: Use the statistics provided for each group to calculate the t-statistic and the degrees of freedom of the t-statistic. Keep two decimal places throughout your calculations. To check your answers, click on the 'Show Answers' buttons.
B5: GROUP 1 | E5: GROUP 2
B6: Case # | C6: Value on Variable X | E6: Case # | F6: Value on Variable X | I6: Group 1 Statistics | J6: Group 2 Statistics
B8: 1 | C8: 13 | E8: 11 | F8: 14 | H8: Mean (x-bar): | I8: 26.4 | J8: 17.2
B9: 2 | C9: 29 | E9: 12 | F9: 18 | H9: Variance (s2): | I9: 71.16 | J9: 64.4
B10: 3 | C10: 35 | E10: 13 | F10: 29 | H10: Standard Deviation (s): | I10: 8.44 | J10: 8.02
B11: 4 | C11: 25 | E11: 14 | F11: 15 | H11: Number of Cases (n): | I11: 10 | J11: 10
B12: 5 | C12: 27 | E12: 15 | F12: 26
B13: 6 | C13: 34 | E13: 16 | F13: 1 | H13: T-statistic
B14: 7 | C14: 18 | E14: 17 | F14: 13 | H14: Degrees of freedom: | J14: hidden
B15: 8 | C15: 16 | E15: 18 | F15: 24 | H15: T-statistic: | J15: hidden
B16: 9 | C16: 38 | E16: 19 | F16: 19
B17: 10 | C17: 29 | E17: 20 | F17: 13 | H17: If the T-statistic is beyond +/-2.1 then p<0.05.
F19: Need some help?
B21: T-STATISTIC CALCULATION
B22: Numerator
D23: = 26.4 - 17.2
D24: = ?
B25: Denominator
D26: = square root of [(71.16 ÷ 10) + (64.4 ÷ 10)]
D27: = square root of (? + ?)
D28: = square root of ?
D29: = ?
B30: T-Statistic
D31: = 9.2 ÷ 3.68
D32: = ?
B34: DEGREES OF FREEDOM OF THE T-STATISTIC CALCULATION
B35: Numerator
D36: = [(71.16 ÷ 10) + (64.4 ÷ 10)]²
D37: = ( ? + ?)²
D38: = ?²
D39: = ?
B40: Denominator
D41: = [(71.16 ÷ 10)² ÷ (10 - 1)] + [(64.4 ÷ 10)² ÷ (10 - 1)]
D42: = (?² ÷ ?) + (?² ÷ ?)
D43: =(? ÷ ?) + (? ÷ ?)
D44: = ? + ?
D45: = ?
B46: Degrees of Freedom
D47: = 183.87 ÷ 10.24
D48: = ? (round to ?)

Sheet Cohen's d-A (hidden)
B1: PRACTICE CALCULATING COHEN'S D
B3: Calculate Cohen's d. Keep two decimal places in your calculations. To check your answers, click on the 'Show Cohen's d' button.
B6: GROUP 1 | E6: GROUP 2
B7: Case # | C7: Value | E7: Case # | F7: Value
A8: =RANDBETWEEN(1,40) -> 20 | B8: 1 | C8: 21 | D8: =RANDBETWEEN(1,30) -> 11 | E8: 11 | F8: 23 | H8: Group 1 Mean | I8: =ROUND(AVERAGE(C8:C17),2) -> 17 | K8: =ROUND(C8-$I$11,2) -> 5 | L8: =ROUND(K8*K8,2) -> 25
A9: =RANDBETWEEN(1,40) -> 14 | B9: 2 | C9: 4 | D9: =RANDBETWEEN(1,30) -> 26 | E9: 12 | F9: 22 | H9: Group 2 Mean | I9: =ROUND(AVERAGE(F8:F17),2) -> 15 | K9: =ROUND(C9-$I$11,2) -> -12 | L9: 144
A10: 5 | B10: 3 | C10: 4 | D10: 13 | E10: 13 | F10: 7 | H10: Standard deviation (overall) | I10: =L30 -> 9.57 | K10: -12 | L10: 144
A11: 11 | B11: 4 | C11: 31 | D11: 28 | E11: 14 | F11: 17 | I11: =ROUND(AVERAGE(C8:C17,F8:F17),2) -> 16 | K11: 15 | L11: 225
A12: 14 | B12: 5 | C12: 17 | D12: 18 | E12: 15 | F12: 27 | H12: Cohen's d | I12: =F28 -> 0.21 | K12: 1 | L12: 1
A13: 29 | B13: 6 | C13: 18 | D13: 10 | E13: 16 | F13: 9 | K13: 2 | L13: 4
A14: 22 | B14: 7 | C14: 9 | D14: 4 | E14: 17 | F14: 18 | K14: -7 | L14: 49
A15: 25 | B15: 8 | C15: 12 | D15: 21 | E15: 18 | F15: 2 | H15: Need some help? | K15: -4 | L15: 16
A16: 27 | B16: 9 | C16: 39 | D16: 24 | E16: 19 | F16: 17 | K16: 23 | L16: 529
A17: 25 | B17: 10 | C17: 15 | D17: 9 | E17: 20 | F17: 8 | K17: -1 | L17: 1
K18: =ROUND(F8-$I$11,2) -> 7 | L18: 49
K19: =ROUND(F9-$I$11,2) -> 6 | L19: 36
B20: COHEN'S D CALCULATION | K20: -9 | L20: 81
B21: Numerator | K21: 1 | L21: 1
D22: =CONCATENATE("'= ",I8," - ",I9) -> '= 17 - 15 | K22: 11 | L22: 121
D23: =CONCATENATE("'= ",F23) -> '= 2 | F23: =ROUND(I8-I9,2) -> 2 | K23: -7 | L23: 49
B24: Denominator | K24: 2 | L24: 4
D25: =CONCATENATE("'= ",I10) -> '= 9.57 | K25: -14 | L25: 196
B26: Cohen's d | K26: 1 | L26: 1
D27: =CONCATENATE("'= ",F23," ÷ ",I10) -> '= 2 ÷ 9.57 | K27: =ROUND(F17-$I$11,2) -> -8 | L27: 64
D28: =CONCATENATE("'= ",F28) -> '= 0.21 | F28: =ROUND(F23/I10,2) -> 0.21 | L28: =ROUND(SUM(L8:L27),2) -> 1740
L29: =ROUND(L28/19,2) -> 91.58
L30: =ROUND(SQRT(L29),2) -> 9.57

Sheet T-Test of Independent Means-A (hidden)
B1: PRACTICE CALCULATING A T-TEST OF INDEPENDENT MEANS
B3: Calculate the between group sum of squares, the within group sum of squares, the total sum of squares, the degrees of freedom and the F-statistic. Keep two decimal places in your calculations. To check your answers, click on the 'Show Sum of Squares' and/or 'Show F-Statistic' buttons.
B6: GROUP 1 | E6: GROUP 2 | I6: Group 1 Statistics | J6: Group 2 Statistics
B7: Case # | C7: Value | E7: Case # | F7: Value
A8: =RANDBETWEEN(10,40) -> 25 | B8: 1 | C8: 13 | D8: =RANDBETWEEN(1,30) -> 16 | E8: 11 | F8: 14 | H8: Mean | I8: =ROUND(AVERAGE(C8:C17),2) -> 26.4 | J8: =ROUND(AVERAGE(F8:F17),2) -> 17.2 | L8: =ROUND(C8-$I$8,2) -> -13.4 | M8: =ROUND(L8*L8,2) -> 179.56 | N8: =ROUND(F8-$J$8,2) -> -3.2 | O8: =ROUND(N8*N8,2) -> 10.24
A9: =RANDBETWEEN(10,40) -> 29 | B9: 2 | C9: 29 | D9: =RANDBETWEEN(1,30) -> 25 | E9: 12 | F9: 18 | H9: Variance (s2) | I9: =M19 -> 71.16 | J9: =O19 -> 64.4 | L9: =ROUND(C9-$I$8,2) -> 2.6 | M9: =ROUND(L9*L9,2) -> 6.76 | N9: =ROUND(F9-$J$8,2) -> 0.8 | O9: =ROUND(N9*N9,2) -> 0.64
A10: 18 | B10: 3 | C10: 35 | D10: 28 | E10: 13 | F10: 29 | H10: Standard Deviation (s) | I10: =M20 -> 8.44 | J10: =O20 -> 8.02 | L10: 8.6 | M10: 73.96 | N10: 11.8 | O10: 139.24
A11: 28 | B11: 4 | C11: 25 | D11: 8 | E11: 14 | F11: 15 | H11: Number of Cases | I11: 10 | J11: 10 | L11: -1.4 | M11: 1.96 | N11: -2.2 | O11: 4.84
A12: 16 | B12: 5 | C12: 27 | D12: 25 | E12: 15 | F12: 26 | L12: 0.6 | M12: 0.36 | N12: 8.8 | O12: 77.44
A13: 40 | B13: 6 | C13: 34 | D13: 23 | E13: 16 | F13: 1 | H13: T-statistic | L13: 7.6 | M13: 57.76 | N13: -16.2 | O13: 262.44
A14: 33 | B14: 7 | C14: 18 | D14: 13 | E14: 17 | F14: 13 | H14: Degrees of freedom | J14: =J48 -> 18 | L14: -8.4 | M14: 70.56 | N14: -4.2 | O14: 17.64
A15: 24 | B15: 8 | C15: 16 | D15: 8 | E15: 18 | F15: 24 | H15: T-statistic | J15: =I32 -> 2.5 | L15: -10.4 | M15: 108.16 | N15: 6.8 | O15: 46.24
A16: 20 | B16: 9 | C16: 38 | D16: 20 | E16: 19 | F16: 19 | L16: 11.6 | M16: 134.56 | N16: 1.8 | O16: 3.24
A17: 18 | B17: 10 | C17: 29 | D17: 20 | E17: 20 | F17: 13 | H17: =CONCATENATE("If the T-statistic is beyond +/-",J49," then p<0.05.") -> If the T-statistic is beyond +/-2.1 then p<0.05. | L17: 2.6 | M17: 6.76 | N17: -4.2 | O17: 17.64
M18: =ROUND(SUM(M8:M17),2) -> 640.4 | O18: =ROUND(SUM(O8:O17),2) -> 579.6
F19: Need some help? | M19: =ROUND(M18/9,2) -> 71.16 | O19: =ROUND(O18/9,2) -> 64.4
M20: =ROUND(SQRT(M19),2) -> 8.44 | O20: =ROUND(SQRT(O19),2) -> 8.02
B21: T-STATISTIC CALCULATION
B22: Numerator
D23: =CONCATENATE("'= ",I8," - ",J8) -> '= 26.4 - 17.2
D24: =CONCATENATE("'= ",I24) -> '= 9.2 | I24: =I8-J8 -> 9.2
B25: Denominator
D26: =CONCATENATE("'= square root of [(",I9," ÷ 10) + (",J9," ÷ 10)]") -> '= square root of [(71.16 ÷ 10) + (64.4 ÷ 10)]
D27: =CONCATENATE("'= square root of (",I27," + ",J27,")") -> '= square root of (7.12 + 6.44) | I27: =ROUND(I9/10,2) -> 7.12 | J27: =ROUND(J9/10,2) -> 6.44
D28: =CONCATENATE("'= square root of ",I28) -> '= square root of 13.56 | I28: =ROUND(I27+J27,2) -> 13.56
D29: =CONCATENATE("'= ",I29) -> '= 3.68 | I29: =ROUND(SQRT(I28),2) -> 3.68
B30: T-Statistic
D31: =CONCATENATE("'= ",I24," ÷ ",I29) -> '= 9.2 ÷ 3.68
D32: =CONCATENATE("'= ",I32) -> '= 2.5 | I32: =ROUND(I24/I29,2) -> 2.5
B34: DEGREES OF FREEDOM OF THE T-STATISTIC CALCULATION
B35: Numerator
D36: =CONCATENATE("'= [(",I9," ÷ 10) + (",J9," ÷ 10)]",I36) -> '= [(71.16 ÷ 10) + (64.4 ÷ 10)]² | I36: ²
B37: =CONCATENATE("'= ( ? + ?)",I36) -> '= ( ? + ?)² | D37: =CONCATENATE("'= (",I37," + ",J37,")",I36) -> '= (7.12 + 6.44)² | I37: =I27 -> 7.12 | J37: =J27 -> 6.44
B38: =CONCATENATE("'= ?",I36) -> '= ?² | D38: =CONCATENATE("'= ",I38,I36) -> '= 13.56² | I38: =I28 -> 13.56
D39: =CONCATENATE("'= ",I39) -> '= 183.87 | I39: =ROUND(I38*I38,2) -> 183.87
B40: Denominator
D41: =CONCATENATE("'= [(",I9," ÷ 10)",I36," ÷ (10 - 1)] + [(",J9," ÷ 10)",I36," ÷ (10 - 1)]") -> '= [(71.16 ÷ 10)² ÷ (10 - 1)] + [(64.4 ÷ 10)² ÷ (10 - 1)]
B42: =CONCATENATE("'= (?",I36," ÷ ?) + (?",I36," ÷ ?)") -> '= (?² ÷ ?) + (?² ÷ ?) | D42: =CONCATENATE("'= (",I42,I36," ÷ 9) + (",J42,I36," ÷ 9)") -> '= (7.12² ÷ 9) + (6.44² ÷ 9) | I42: =I37 -> 7.12 | J42: =J37 -> 6.44
D43: =CONCATENATE("'= (",I43," ÷ 9) + (",J43," ÷ 9)") -> '= (50.69 ÷ 9) + (41.47 ÷ 9) | I43: =ROUND(I42*I42,2) -> 50.69 | J43: =ROUND(J42*J42,2) -> 41.47
D44: =CONCATENATE("'= ",I44," + ",J44) -> '= 5.63 + 4.61 | I44: =ROUND(I43/9,2) -> 5.63 | J44: =ROUND(J43/9,2) -> 4.61
D45: =CONCATENATE("'= ",I45) -> '= 10.24 | I45: =ROUND(SUM(I44:J44),2) -> 10.24
B46: Degrees of Freedom
D47: =CONCATENATE("'= ",I39," ÷ ",I45) -> '= 183.87 ÷ 10.24
D48: =CONCATENATE("'=",I48," (round to ",J48,")") -> '=17.96 (round to 18) | I48: =ROUND(I39/I45,2) -> 17.96 | J48: =ROUND(I48,0) -> 18
J49: =ROUND(_xlfn.T.INV.2T(0.05,J48),2) -> 2.1
